[Event "Early-Titled-Tuesday-Blitz-October-17-2023"]
[Site "Chess.com"]
[Date "2023.10.17"]
[Round "4"]
[White "Thormento16"]
[Black "MFatigue"]
[Result "0-1"]
[WhiteElo "2310"]
[BlackElo "2547"]
[TimeControl "180+1"]
[EndTime "8:42:22 PDT"]
[Termination "MFatigue won on time"]

1. e4 {[%clk 0:02:54.1]} 1... e6 {[%clk 0:03:00.5]} 2. d4 {[%clk 0:02:52.5]}
2... d5 {[%clk 0:03:01.1]} 3. Nd2 {[%clk 0:02:53.2]} 3... Nf6 {[%clk 0:03:01.6]}
4. e5 {[%clk 0:02:52.9]} 4... Nfd7 {[%clk 0:03:02.3]} 5. Bd3 {[%clk 0:02:53.6]}
5... c5 {[%clk 0:03:03.2]} 6. c3 {[%clk 0:02:54.3]} 6... Nc6 {[%clk 0:03:04.1]}
7. Ne2 {[%clk 0:02:54.7]} 7... cxd4 {[%clk 0:03:04.3]} 8. cxd4 {[%clk
0:02:55.6]} 8... f6 {[%clk 0:03:05.1]} 9. Nf4 {[%clk 0:02:55.8]} 9... Nxd4
{[%clk 0:03:05.1]} 10. Qh5+ {[%clk 0:02:55.8]} 10... Ke7 {[%clk 0:03:05.8]} 11.
Ng6+ {[%clk 0:02:56.1]} 11... hxg6 {[%clk 0:03:05.6]} 12. exf6+ {[%clk 0:02:57]}
12... Nxf6 {[%clk 0:03:06.1]} 13. Qxh8 {[%clk 0:02:57.7]} 13... Kf7 {[%clk
0:03:07]} 14. Qh4 {[%clk 0:02:55.6]} 14... e5 {[%clk 0:03:06.9]} 15. Nf3 {[%clk
0:02:55.3]} 15... Nxf3+ {[%clk 0:02:53.7]} 16. gxf3 {[%clk 0:02:56.2]} 16... Bf5
{[%clk 0:02:53.3]} 17. Bxf5 {[%clk 0:02:55.5]} 17... gxf5 {[%clk 0:02:54.2]} 18.
Bg5 {[%clk 0:02:55.7]} 18... Qa5+ {[%clk 0:02:45.3]} 19. Kf1 {[%clk 0:02:55.4]}
19... Qb6 {[%clk 0:02:43.2]} 20. Kg2 {[%clk 0:02:47.7]} 20... Be7 {[%clk
0:02:37.5]} 21. Rac1 {[%clk 0:02:39.8]} 21... d4 {[%clk 0:02:37]} 22. Rhe1
{[%clk 0:02:33.8]} 22... Ke6 {[%clk 0:02:19.3]} 23. Qg3 {[%clk 0:02:09.2]} 23...
Bd6 {[%clk 0:02:16.1]} 24. Bf4 {[%clk 0:02:00.7]} 24... Qb5 {[%clk 0:02:16]} 25.
a4 {[%clk 0:01:55.5]} 25... Qd5 {[%clk 0:02:15.1]} 26. b4 {[%clk 0:01:46.1]}
26... b6 {[%clk 0:01:57.6]} 27. b5 {[%clk 0:01:37.4]} 27... Re8 {[%clk
0:01:31.5]} 28. Rc6 {[%clk 0:01:30.3]} 28... Kf7 {[%clk 0:01:31.9]} 29. Bg5
{[%clk 0:01:26]} 29... Nh5 {[%clk 0:01:21.3]} 30. Qh3 {[%clk 0:01:18.6]} 30...
g6 {[%clk 0:01:21.2]} 31. Rec1 {[%clk 0:01:11.1]} 31... e4 {[%clk 0:01:15.6]}
32. fxe4 {[%clk 0:01:07.5]} 32... Rxe4 {[%clk 0:01:10.5]} 33. f3 {[%clk
0:00:56.2]} 33... Re2+ {[%clk 0:01:06.5]} 34. Kg1 {[%clk 0:00:53.1]} 34... d3
{[%clk 0:00:33.7]} 35. f4 {[%clk 0:00:36.8]} 35... Qd4+ {[%clk 0:00:31.2]} 36.
Kh1 {[%clk 0:00:37]} 36... Qe4+ {[%clk 0:00:28.2]} 37. Kg1 {[%clk 0:00:36.6]}
37... Re1+ {[%clk 0:00:26.2]} 38. Rxe1 {[%clk 0:00:35.3]} 38... Qxe1+ {[%clk
0:00:27.1]} 39. Qf1 {[%clk 0:00:35.7]} 39... Bc5+ {[%clk 0:00:15.8]} 40. Rxc5
{[%clk 0:00:32.7]} 40... Qxf1+ {[%clk 0:00:16]} 41. Kxf1 {[%clk 0:00:33.6]}
41... bxc5 {[%clk 0:00:16.2]} 42. a5 {[%clk 0:00:33.6]} 42... Ng7 {[%clk
0:00:07.8]} 43. b6 {[%clk 0:00:32.6]} 43... axb6 {[%clk 0:00:08.3]} 44. a6
{[%clk 0:00:33.2]} 44... Ne6 {[%clk 0:00:08.2]} 45. a7 {[%clk 0:00:32.7]} 45...
Nc7 {[%clk 0:00:08.7]} 46. Bd8 {[%clk 0:00:33]} 46... Na8 {[%clk 0:00:08.7]} 47.
Ke1 {[%clk 0:00:33.6]} 47... c4 {[%clk 0:00:08.6]} 48. Kd2 {[%clk 0:00:34.1]}
48... Ke6 {[%clk 0:00:08]} 49. h4 {[%clk 0:00:32.6]} 49... Kd5 {[%clk
0:00:08.5]} 50. Bf6 {[%clk 0:00:31.2]} 50... b5 {[%clk 0:00:08.5]} 51. Ke3
{[%clk 0:00:30.1]} 51... b4 {[%clk 0:00:08.3]} 52. Bg7 {[%clk 0:00:27.3]} 52...
Kc5 {[%clk 0:00:06.9]} 53. Bf8+ {[%clk 0:00:26.9]} 53... Kb5 {[%clk 0:00:07.2]}
54. Bg7 {[%clk 0:00:22.4]} 54... Ka4 {[%clk 0:00:07.4]} 55. Kd2 {[%clk
0:00:22.4]} 55... Kb3 {[%clk 0:00:07.8]} 56. Be5 {[%clk 0:00:20.9]} 56... Ka2
{[%clk 0:00:06.6]} 57. Bd4 {[%clk 0:00:20.8]} 57... b3 {[%clk 0:00:07]} 58. Kc1
{[%clk 0:00:21.1]} 58... d2+ {[%clk 0:00:06]} 59. Kxd2 {[%clk 0:00:20.2]} 59...
b2 {[%clk 0:00:06.6]} 60. Bxb2 {[%clk 0:00:19.5]} 60... Kxb2 {[%clk 0:00:07.5]}
0-1

[Event "Early-Titled-Tuesday-Blitz-October-17-2023"]
[Site "Chess.com"]
[Date "2023.10.17"]
[Round "4"]
[White "rasmussvane"]
[Black "Mesa_1"]
[Result "1-0"]
[WhiteElo "2987"]
[BlackElo "2587"]
[TimeControl "180+1"]
[EndTime "8:42:23 PDT"]
[Termination "rasmussvane won by resignation"]

1. Nf3 {[%clk 0:03:00.9]} 1... Nf6 {[%clk 0:03:00.2]} 2. g3 {[%clk 0:02:59.8]}
2... g6 {[%clk 0:03:00.8]} 3. Bg2 {[%clk 0:03:00.3]} 3... Bg7 {[%clk 0:03:01.6]}
4. O-O {[%clk 0:03:00.4]} 4... O-O {[%clk 0:03:02.5]} 5. d4 {[%clk 0:03:00.6]}
5... d6 {[%clk 0:03:02.6]} 6. Re1 {[%clk 0:03:00.7]} 6... Nc6 {[%clk 0:02:46.7]}
7. d5 {[%clk 0:03:00.1]} 7... Nb4 {[%clk 0:02:45.8]} 8. e4 {[%clk 0:02:56]} 8...
a5 {[%clk 0:02:46.2]} 9. Nc3 {[%clk 0:02:51.7]} 9... e6 {[%clk 0:02:44.9]} 10.
a3 {[%clk 0:02:48.2]} 10... Na6 {[%clk 0:02:44.5]} 11. dxe6 {[%clk 0:02:48.7]}
11... Bxe6 {[%clk 0:02:44.6]} 12. Nd4 {[%clk 0:02:47.8]} 12... Bd7 {[%clk
0:02:44.5]} 13. Bf4 {[%clk 0:02:40.2]} 13... Re8 {[%clk 0:02:45.1]} 14. Qd2
{[%clk 0:02:40.3]} 14... Nc5 {[%clk 0:02:28.4]} 15. Rad1 {[%clk 0:02:40.1]}
15... Ne6 {[%clk 0:02:22.9]} 16. Nxe6 {[%clk 0:02:36]} 16... Bxe6 {[%clk
0:02:23.8]} 17. Bh6 {[%clk 0:02:34.7]} 17... Bxh6 {[%clk 0:02:16.9]} 18. Qxh6
{[%clk 0:02:35.6]} 18... Qe7 {[%clk 0:01:53.6]} 19. Qg5 {[%clk 0:02:31.1]} 19...
Nd7 {[%clk 0:01:45.1]} 20. Qd2 {[%clk 0:02:20]} 20... Nb6 {[%clk 0:01:13.2]} 21.
f4 {[%clk 0:02:15.7]} 21... Bg4 {[%clk 0:01:13.1]} 22. Rb1 {[%clk 0:02:10.9]}
22... a4 {[%clk 0:01:04.3]} 23. h3 {[%clk 0:02:10]} 23... Bd7 {[%clk 0:01:04.9]}
24. Rbd1 {[%clk 0:02:01]} 24... Bc6 {[%clk 0:01:03.4]} 25. Qd4 {[%clk
0:01:59.6]} 25... h5 {[%clk 0:01:00.1]} 26. Kh2 {[%clk 0:01:59.2]} 26... h4
{[%clk 0:00:54.1]} 27. g4 {[%clk 0:01:49.8]} 27... g5 {[%clk 0:00:53.7]} 28. e5
{[%clk 0:01:11]} 28... gxf4 {[%clk 0:00:39.4]} 29. Bxc6 {[%clk 0:00:53.8]} 29...
bxc6 {[%clk 0:00:40.3]} 30. Qxf4 {[%clk 0:00:39.1]} 30... dxe5 {[%clk
0:00:34.8]} 31. Qh6 {[%clk 0:00:39.4]} 31... Qe6 {[%clk 0:00:24.6]} 32. Qxh4
{[%clk 0:00:39.6]} 32... Kg7 {[%clk 0:00:17.5]} 33. Ne4 {[%clk 0:00:38.1]} 33...
Rh8 {[%clk 0:00:18]} 34. Qg5+ {[%clk 0:00:38.5]} 34... Kf8 {[%clk 0:00:17.8]}
35. Nc5 {[%clk 0:00:26.2]} 35... Qh6 {[%clk 0:00:13.8]} 36. Qxh6+ {[%clk
0:00:20.4]} 36... Rxh6 {[%clk 0:00:14.7]} 37. Rxe5 {[%clk 0:00:20.9]} 37... Rd6
{[%clk 0:00:15.3]} 38. Nd3 {[%clk 0:00:16]} 38... Nc4 {[%clk 0:00:13]} 39. Rf5
{[%clk 0:00:16.5]} 39... Re8 {[%clk 0:00:11.2]} 40. Rf2 {[%clk 0:00:14.6]} 40...
Ne3 {[%clk 0:00:10.5]} 41. Rc1 {[%clk 0:00:10.1]} 41... Nxc2 {[%clk 0:00:10.8]}
42. Rcxc2 {[%clk 0:00:09.7]} 42... Rxd3 {[%clk 0:00:11.4]} 43. Rxc6 {[%clk
0:00:10.3]} 43... Ree3 {[%clk 0:00:12.1]} 44. Rxc7 {[%clk 0:00:08.8]} 44...
Rxh3+ {[%clk 0:00:12.2]} 45. Kg1 {[%clk 0:00:09]} 45... Rdg3+ {[%clk 0:00:08.5]}
46. Kf1 {[%clk 0:00:09.4]} 46... Rxg4 {[%clk 0:00:06.8]} 47. Rfxf7+ {[%clk
0:00:08.8]} 47... Kg8 {[%clk 0:00:06.4]} 48. Rfd7 {[%clk 0:00:07.4]} 48... Rf4+
{[%clk 0:00:05.1]} 49. Kg2 {[%clk 0:00:07.4]} 49... Re3 {[%clk 0:00:04.2]} 50.
Rg7+ {[%clk 0:00:04.9]} 50... Kh8 {[%clk 0:00:03.7]} 51. Rh7+ {[%clk 0:00:05.8]}
51... Kg8 {[%clk 0:00:04.1]} 52. Rcg7+ {[%clk 0:00:06.5]} 52... Kf8 {[%clk
0:00:04.2]} 53. Ra7 {[%clk 0:00:07.4]} 53... Kg8 {[%clk 0:00:03.9]} 54. Rhb7
{[%clk 0:00:07.5]} 54... Re8 {[%clk 0:00:02.1]} 55. Kg3 {[%clk 0:00:06.8]} 55...
Rf6 {[%clk 0:00:02]} 56. Rxa4 {[%clk 0:00:06.5]} 56... Rg6+ {[%clk 0:00:02.1]}
57. Rg4 {[%clk 0:00:06.7]} 57... Re3+ {[%clk 0:00:02.6]} 58. Kf4 {[%clk
0:00:07.1]} 58... Re4+ {[%clk 0:00:02.7]} 59. Kxe4 {[%clk 0:00:07.7]} 1-0

[Event "Early-Titled-Tuesday-Blitz-October-17-2023"]
[Site "Chess.com"]
[Date "2023.10.17"]
[Round "4"]
[White "tarno17"]
[Black "emeli_chess"]
[Result "0-1"]
[WhiteElo "2133"]
[BlackElo "2403"]
[TimeControl "180+1"]
[EndTime "8:42:24 PDT"]
[Termination "emeli_chess won on time"]

1. e4 {[%clk 0:02:39.7]} 1... c5 {[%clk 0:02:58.9]} 2. Nf3 {[%clk 0:02:38.5]}
2... d6 {[%clk 0:02:58.6]} 3. Bb5+ {[%clk 0:02:38.5]} 3... Nd7 {[%clk
0:02:56.8]} 4. O-O {[%clk 0:02:37.9]} 4... a6 {[%clk 0:02:45.5]} 5. Bxd7+ {[%clk
0:02:36.4]} 5... Bxd7 {[%clk 0:02:42.6]} 6. d4 {[%clk 0:02:33.4]} 6... cxd4
{[%clk 0:02:39.8]} 7. Nxd4 {[%clk 0:02:32.4]} 7... Nf6 {[%clk 0:02:36.8]} 8. Nc3
{[%clk 0:02:32.3]} 8... e6 {[%clk 0:02:36.4]} 9. Bg5 {[%clk 0:02:28.7]} 9... Be7
{[%clk 0:02:29.8]} 10. Qf3 {[%clk 0:02:16.3]} 10... O-O {[%clk 0:02:27.8]} 11.
Rfe1 {[%clk 0:02:13.1]} 11... b5 {[%clk 0:02:20.3]} 12. a3 {[%clk 0:02:08]}
12... h6 {[%clk 0:02:15.9]} 13. Bh4 {[%clk 0:01:57.8]} 13... Nh7 {[%clk
0:02:15.5]} 14. Bg3 {[%clk 0:01:36.1]} 14... Rc8 {[%clk 0:01:44.2]} 15. Rad1
{[%clk 0:01:32]} 15... Qb6 {[%clk 0:01:32.5]} 16. Qh5 {[%clk 0:01:07.5]} 16...
Qc5 {[%clk 0:01:25.2]} 17. Qxc5 {[%clk 0:01:03.7]} 17... Rxc5 {[%clk 0:01:18.6]}
18. Nb3 {[%clk 0:01:02.4]} 18... Rc6 {[%clk 0:01:16.5]} 19. Na5 {[%clk
0:00:51.2]} 19... Rb6 {[%clk 0:01:16.6]} 20. Rd2 {[%clk 0:00:44.8]} 20... Nf6
{[%clk 0:01:09.3]} 21. Red1 {[%clk 0:00:43.5]} 21... Ne8 {[%clk 0:01:09.4]} 22.
f3 {[%clk 0:00:43.2]} 22... f5 {[%clk 0:01:07.7]} 23. exf5 {[%clk 0:00:37.4]}
23... Rxf5 {[%clk 0:01:06.3]} 24. Ne4 {[%clk 0:00:22.1]} 24... d5 {[%clk
0:01:01.4]} 25. Nc3 {[%clk 0:00:18.8]} 25... Bd6 {[%clk 0:01:00.3]} 26. Ne2
{[%clk 0:00:13]} 26... Bxg3 {[%clk 0:00:59.1]} 27. Nxg3 {[%clk 0:00:11.1]} 27...
Rf8 {[%clk 0:00:54.9]} 28. Re1 {[%clk 0:00:09.6]} 28... Nd6 {[%clk 0:00:54.3]}
29. Nb3 {[%clk 0:00:05.1]} 29... Nc4 {[%clk 0:00:54]} 30. Rde2 {[%clk 0:00:05]}
30... Nxb2 {[%clk 0:00:42.2]} 31. Nc5 {[%clk 0:00:05.3]} 31... Bc8 {[%clk
0:00:38.5]} 32. Nxe6 {[%clk 0:00:05.8]} 32... Bxe6 {[%clk 0:00:38.1]} 33. Rxe6
{[%clk 0:00:06.7]} 33... Rxe6 {[%clk 0:00:35.3]} 34. Rxe6 {[%clk 0:00:07.6]}
34... Rc8 {[%clk 0:00:35.6]} 35. Rxa6 {[%clk 0:00:06.4]} 35... Rxc2 {[%clk
0:00:35.6]} 36. Rd6 {[%clk 0:00:05.7]} 36... Nd3 {[%clk 0:00:35.4]} 37. h3
{[%clk 0:00:05.4]} 37... Nf4 {[%clk 0:00:30.8]} 38. Nf5 {[%clk 0:00:04.3]} 38...
Rxg2+ {[%clk 0:00:30]} 39. Kf1 {[%clk 0:00:04.6]} 39... Ra2 {[%clk 0:00:24.7]}
40. Rd7 {[%clk 0:00:03.7]} 40... g5 {[%clk 0:00:20.9]} 41. Nxh6+ {[%clk
0:00:03.4]} 41... Kf8 {[%clk 0:00:21.3]} 42. Rf7+ {[%clk 0:00:02.9]} 42... Ke8
{[%clk 0:00:21.6]} 43. Rg7 {[%clk 0:00:02.9]} 43... Nxh3 {[%clk 0:00:20.3]} 44.
Nf5 {[%clk 0:00:02.5]} 44... Rxa3 {[%clk 0:00:17.8]} 45. Nd6+ {[%clk 0:00:02.3]}
45... Kd8 {[%clk 0:00:18.2]} 46. Nb7+ {[%clk 0:00:02.6]} 46... Kc8 {[%clk
0:00:18.1]} 47. Nd6+ {[%clk 0:00:03.2]} 47... Kb8 {[%clk 0:00:18.3]} 48. Nxb5
{[%clk 0:00:03.1]} 48... Rxf3+ {[%clk 0:00:17.1]} 49. Kg2 {[%clk 0:00:03.7]}
49... Rb3 {[%clk 0:00:16.7]} 50. Nd6 {[%clk 0:00:02.6]} 50... Nf4+ {[%clk
0:00:15.7]} 51. Kf2 {[%clk 0:00:02.5]} 51... d4 {[%clk 0:00:14]} 52. Ne4 {[%clk
0:00:02.2]} 52... Ne6 {[%clk 0:00:12.8]} 53. Rg8+ {[%clk 0:00:01.9]} 53... Kc7
{[%clk 0:00:12.4]} 54. Nxg5 {[%clk 0:00:02.5]} 54... Nc5 {[%clk 0:00:09.8]} 55.
Ke2 {[%clk 0:00:02]} 55... Kc6 {[%clk 0:00:09.5]} 56. Kd2 {[%clk 0:00:01.7]}
56... Kd5 {[%clk 0:00:09.9]} 57. Rd8+ {[%clk 0:00:01.6]} 57... Kc4 {[%clk
0:00:10.3]} 58. Nf7 {[%clk 0:00:01]} 58... Rb2+ {[%clk 0:00:10.6]} 59. Kc1
{[%clk 0:00:01.3]} 59... Re2 {[%clk 0:00:09.6]} 0-1

[Event "Early-Titled-Tuesday-Blitz-October-17-2023"]
[Site "Chess.com"]
[Date "2023.10.17"]
[Round "4"]
[White "MDBIchess"]
[Black "jup1978"]
[Result "1/2-1/2"]
[WhiteElo "2380"]
[BlackElo "2547"]
[TimeControl "180+1"]
[EndTime "8:42:28 PDT"]
[Termination "Game drawn by agreement"]

1. Nf3 {[%clk 0:03:00.9]} 1... d5 {[%clk 0:02:56.4]} 2. d4 {[%clk 0:02:56.4]}
2... e6 {[%clk 0:02:56.3]} 3. e3 {[%clk 0:02:54.1]} 3... Nf6 {[%clk 0:02:56]} 4.
Bd3 {[%clk 0:02:53.7]} 4... b6 {[%clk 0:02:56.3]} 5. O-O {[%clk 0:02:54]} 5...
Bd6 {[%clk 0:02:53.7]} 6. b3 {[%clk 0:02:54.2]} 6... O-O {[%clk 0:02:52.8]} 7.
Bb2 {[%clk 0:02:54.3]} 7... Ba6 {[%clk 0:02:52.9]} 8. Nbd2 {[%clk 0:02:52.3]}
8... Bxd3 {[%clk 0:02:52.2]} 9. cxd3 {[%clk 0:02:53.2]} 9... Nbd7 {[%clk
0:02:52.5]} 10. Qe2 {[%clk 0:02:53.3]} 10... c5 {[%clk 0:02:52.4]} 11. Rac1
{[%clk 0:02:48.8]} 11... Qe7 {[%clk 0:02:45.7]} 12. Ne5 {[%clk 0:02:45.8]} 12...
cxd4 {[%clk 0:02:43.1]} 13. exd4 {[%clk 0:02:46.7]} 13... Rfc8 {[%clk
0:02:32.6]} 14. Ndf3 {[%clk 0:02:33.8]} 14... h6 {[%clk 0:02:28.8]} 15. Nc6
{[%clk 0:02:14]} 15... Qf8 {[%clk 0:02:26.6]} 16. Nfe5 {[%clk 0:02:10.3]} 16...
Rc7 {[%clk 0:02:02.9]} 17. Rc2 {[%clk 0:01:47.2]} 17... Rac8 {[%clk 0:02:01.6]}
18. Rfc1 {[%clk 0:01:47.8]} 18... a6 {[%clk 0:01:37]} 19. g3 {[%clk 0:01:25.7]}
19... Qe8 {[%clk 0:01:21.4]} 20. Kg2 {[%clk 0:01:17.9]} 20... Bf8 {[%clk
0:01:08.1]} 21. Na7 {[%clk 0:01:12.3]} 21... Rxc2 {[%clk 0:01:05.9]} 22. Rxc2
{[%clk 0:01:13.2]} 22... Rxc2 {[%clk 0:01:02.7]} 23. Qxc2 {[%clk 0:01:14.1]}
23... Qb8 {[%clk 0:01:01.8]} 24. Nac6 {[%clk 0:01:06.5]} 24... Qb7 {[%clk
0:00:51.8]} 25. a4 {[%clk 0:00:46.1]} 25... Nxe5 {[%clk 0:00:50.9]} 26. dxe5
{[%clk 0:00:29]} 26... Nd7 {[%clk 0:00:49.9]} 27. d4 {[%clk 0:00:28.4]} 27... b5
{[%clk 0:00:44.6]} 28. axb5 {[%clk 0:00:20.2]} 28... Qxb5 {[%clk 0:00:43.3]} 29.
Nd8 {[%clk 0:00:13.8]} 29... Qb8 {[%clk 0:00:34.4]} 30. Nc6 {[%clk 0:00:14.1]}
30... Qb6 {[%clk 0:00:30.9]} 31. Bc1 {[%clk 0:00:08.1]} 31... Nb8 {[%clk
0:00:17.6]} 32. Nxb8 {[%clk 0:00:06.9]} 32... Qxb8 {[%clk 0:00:18.5]} 33. Be3
{[%clk 0:00:06.1]} 33... Be7 {[%clk 0:00:16.4]} 34. Qa2 {[%clk 0:00:03.5]} 34...
Qb5 {[%clk 0:00:15.3]} 35. Qa4 {[%clk 0:00:02.2]} 35... Kf8 {[%clk 0:00:13.3]}
36. Qxb5 {[%clk 0:00:02.3]} 36... axb5 {[%clk 0:00:14.2]} 37. Kf1 {[%clk
0:00:03.2]} 37... Bb4 {[%clk 0:00:13.7]} 38. Ke2 {[%clk 0:00:04.1]} 38... h5
{[%clk 0:00:13.4]} 39. Kd3 {[%clk 0:00:05]} 39... Ke7 {[%clk 0:00:13.5]} 40. f4
{[%clk 0:00:05.9]} 40... f6 {[%clk 0:00:13.3]} 41. Bd2 {[%clk 0:00:05.5]} 41...
Bxd2 {[%clk 0:00:08.7]} 42. Kxd2 {[%clk 0:00:06.4]} 42... b4 {[%clk 0:00:09.1]}
43. Ke3 {[%clk 0:00:06.2]} 43... Kf7 {[%clk 0:00:09.4]} 44. Kf3 {[%clk 0:00:06]}
44... Kg6 {[%clk 0:00:08.9]} 45. h3 {[%clk 0:00:05.8]} 45... fxe5 {[%clk
0:00:08.2]} 46. fxe5 {[%clk 0:00:05.6]} 46... Kg5 {[%clk 0:00:08.5]} 47. Ke3
{[%clk 0:00:04.5]} 47... Kf5 {[%clk 0:00:06.6]} 48. Kf3 {[%clk 0:00:03.5]} 48...
Kg5 {[%clk 0:00:05.9]} 49. Ke3 {[%clk 0:00:03.3]} 49... Kf5 {[%clk 0:00:06.3]}
50. Kf3 {[%clk 0:00:04]} 50... g5 {[%clk 0:00:06.9]} 51. g4+ {[%clk 0:00:04]}
51... Kg6 {[%clk 0:00:06.2]} 52. Kg3 {[%clk 0:00:03.9]} 52... h4+ {[%clk
0:00:05]} 53. Kf3 {[%clk 0:00:04.4]} 53... Kf7 {[%clk 0:00:05.7]} 54. Kf2 {[%clk
0:00:05]} 54... Ke7 {[%clk 0:00:06.6]} 55. Ke3 {[%clk 0:00:05.9]} 55... Kd7
{[%clk 0:00:07.5]} 56. Ke2 {[%clk 0:00:06.8]} 56... Kc7 {[%clk 0:00:08.4]} 57.
Kd3 {[%clk 0:00:07.7]} 57... Kb7 {[%clk 0:00:09.3]} 58. Kd2 {[%clk 0:00:08.6]}
58... Kb6 {[%clk 0:00:10.2]} 59. Kc2 {[%clk 0:00:09.5]} 59... Kb7 {[%clk
0:00:11.1]} 60. Kb2 {[%clk 0:00:10.4]} 60... Kc7 {[%clk 0:00:11.4]} 61. Ka2
{[%clk 0:00:11.3]} 61... Kb6 {[%clk 0:00:12.1]} 62. Ka1 {[%clk 0:00:12.2]} 62...
Kb7 {[%clk 0:00:13]} 63. Kb1 {[%clk 0:00:13.1]} 63... Kc7 {[%clk 0:00:13.9]} 64.
Kc1 {[%clk 0:00:14]} 64... Kb6 {[%clk 0:00:14.8]} 65. Kd1 {[%clk 0:00:14.9]}
65... Kb7 {[%clk 0:00:15.7]} 66. Ke1 {[%clk 0:00:15.8]} 66... Kc7 {[%clk
0:00:16.6]} 1/2-1/2

[Event "Early-Titled-Tuesday-Blitz-October-17-2023"]
[Site "Chess.com"]
[Date "2023.10.17"]
[Round "4"]
[White "Lion-Al-Messi"]
[Black "K_A_S_T_O_R"]
[Result "0-1"]
[WhiteElo "2657"]
[BlackElo "2870"]
[TimeControl "180+1"]
[EndTime "8:42:30 PDT"]
[Termination "K_A_S_T_O_R won by resignation"]

1. e4 {[%clk 0:03:00.9]} 1... c5 {[%clk 0:02:59.4]} 2. Nf3 {[%clk 0:03:01]} 2...
d6 {[%clk 0:02:59.3]} 3. d4 {[%clk 0:03:01.4]} 3... cxd4 {[%clk 0:02:59.5]} 4.
Nxd4 {[%clk 0:03:02.3]} 4... Nf6 {[%clk 0:02:59.5]} 5. Nc3 {[%clk 0:03:02.8]}
5... a6 {[%clk 0:03:00.1]} 6. h3 {[%clk 0:03:03.1]} 6... e6 {[%clk 0:03:00.2]}
7. g4 {[%clk 0:03:03]} 7... h6 {[%clk 0:03:00.7]} 8. Bg2 {[%clk 0:03:03]} 8...
Be7 {[%clk 0:03:00.9]} 9. Be3 {[%clk 0:03:03]} 9... Nc6 {[%clk 0:03:01.2]} 10.
Qe2 {[%clk 0:02:58]} 10... Nxd4 {[%clk 0:03:00.6]} 11. Bxd4 {[%clk 0:02:58.9]}
11... e5 {[%clk 0:03:01.1]} 12. Be3 {[%clk 0:02:58.1]} 12... b5 {[%clk
0:03:01.4]} 13. O-O-O {[%clk 0:02:53.9]} 13... b4 {[%clk 0:03:01.1]} 14. Nd5
{[%clk 0:02:53.5]} 14... Nxd5 {[%clk 0:03:00.5]} 15. exd5 {[%clk 0:02:54.4]}
15... O-O {[%clk 0:03:00.5]} 16. f4 {[%clk 0:02:49.5]} 16... exf4 {[%clk
0:02:52.6]} 17. Bxf4 {[%clk 0:02:50.4]} 17... Bf6 {[%clk 0:02:49.3]} 18. Qc4
{[%clk 0:02:35.6]} 18... a5 {[%clk 0:02:46.5]} 19. Be4 {[%clk 0:02:34.9]} 19...
Re8 {[%clk 0:02:30.4]} 20. Rhe1 {[%clk 0:02:29.5]} 20... Be5 {[%clk 0:02:15.2]}
21. Bxe5 {[%clk 0:02:14.3]} 21... Rxe5 {[%clk 0:02:14.6]} 22. Bd3 {[%clk
0:02:01]} 22... Ba6 {[%clk 0:02:09.7]} 23. Qd4 {[%clk 0:01:54.6]} 23... Qg5+
{[%clk 0:01:59.8]} 24. Kb1 {[%clk 0:01:53.3]} 24... Bxd3 {[%clk 0:01:59.4]} 25.
Qxd3 {[%clk 0:01:45.6]} 25... Rae8 {[%clk 0:01:58.5]} 26. Rxe5 {[%clk
0:01:38.5]} 26... Rxe5 {[%clk 0:01:50.5]} 27. b3 {[%clk 0:01:07.3]} 27... Re3
{[%clk 0:01:36]} 28. Qb5 {[%clk 0:01:06.4]} 28... Rxh3 {[%clk 0:01:35.6]} 29.
Qe8+ {[%clk 0:00:50.2]} 29... Kh7 {[%clk 0:01:34.8]} 30. Qxf7 {[%clk 0:00:46.5]}
30... Qxg4 {[%clk 0:01:32.6]} 31. Re1 {[%clk 0:00:46.8]} 31... Qf3 {[%clk
0:01:21.3]} 32. Qe6 {[%clk 0:00:43.6]} 32... Rh5 {[%clk 0:01:12.5]} 33. Qxd6
{[%clk 0:00:17.7]} 33... Rxd5 {[%clk 0:01:07]} 34. Qe6 {[%clk 0:00:15.7]} 34...
Qf5 {[%clk 0:00:58.9]} 35. Qe2 {[%clk 0:00:14.3]} 35... Rc5 {[%clk 0:00:58.3]}
36. Rf1 {[%clk 0:00:12.6]} 36... Qg6 {[%clk 0:00:55.9]} 37. Qf2 {[%clk
0:00:12.2]} 37... Rg5 {[%clk 0:00:51]} 38. a4 {[%clk 0:00:10]} 38... Rg2 {[%clk
0:00:47.4]} 39. Qc5 {[%clk 0:00:09.6]} 39... Rg5 {[%clk 0:00:44.6]} 40. Qd4
{[%clk 0:00:08.5]} 40... h5 {[%clk 0:00:43.1]} 41. Rh1 {[%clk 0:00:08.7]} 41...
Qc6 {[%clk 0:00:33.1]} 42. Qd3+ {[%clk 0:00:08.2]} 42... Kh6 {[%clk 0:00:33.1]}
43. Qh3 {[%clk 0:00:05.1]} 43... Qg2 {[%clk 0:00:30.1]} 44. Qh4 {[%clk 0:00:03]}
44... Qg4 {[%clk 0:00:29.9]} 45. Qe1 {[%clk 0:00:03]} 45... Rg6 {[%clk
0:00:29.3]} 46. Rf1 {[%clk 0:00:02.9]} 46... Re6 {[%clk 0:00:27.1]} 47. Qd2+
{[%clk 0:00:02.7]} 47... Kh7 {[%clk 0:00:27.1]} 48. Qd3+ {[%clk 0:00:03.3]}
48... Qg6 {[%clk 0:00:27.2]} 49. Qh3 {[%clk 0:00:03.4]} 49... Re2 {[%clk
0:00:25.4]} 50. Rc1 {[%clk 0:00:03.6]} 50... Rg2 {[%clk 0:00:24.3]} 51. Kb2
{[%clk 0:00:02.8]} 51... Rg3 {[%clk 0:00:21.9]} 52. Qh2 {[%clk 0:00:02.7]} 52...
Qf6+ {[%clk 0:00:20.3]} 53. Kb1 {[%clk 0:00:03.2]} 53... Qe5 {[%clk 0:00:20.4]}
54. Rh1 {[%clk 0:00:02.2]} 54... Rg5 {[%clk 0:00:19.9]} 55. Qd2 {[%clk
0:00:02.1]} 55... Qf5 {[%clk 0:00:19.7]} 56. Qe2 {[%clk 0:00:01.5]} 56... Qg6
{[%clk 0:00:19.8]} 57. Qd2 {[%clk 0:00:01.3]} 57... Rg1+ {[%clk 0:00:18]} 58.
Rxg1 {[%clk 0:00:01.8]} 58... Qxg1+ {[%clk 0:00:18.2]} 59. Kb2 {[%clk
0:00:02.4]} 59... Qg6 {[%clk 0:00:18.7]} 60. Qf4 {[%clk 0:00:02.2]} 60... Qf6+
{[%clk 0:00:18.7]} 61. Qxf6 {[%clk 0:00:02.1]} 61... gxf6 {[%clk 0:00:19.3]} 62.
c3 {[%clk 0:00:02.7]} 62... bxc3+ {[%clk 0:00:19.6]} 63. Kxc3 {[%clk 0:00:03.6]}
63... h4 {[%clk 0:00:20.3]} 64. b4 {[%clk 0:00:03.4]} 64... axb4+ {[%clk
0:00:18]} 0-1